Cogmind - Beta 12 @@@ ROGUE MODE // 2023.09.30 @ 21:57:25 Player: 16th Result: Destroyed by G-47 Trooper with Particle Gun Performance ------------- Evolutions (2) 1000 Regions Visited (5) 1000 Robots Destroyed (43) 215 Value Destroyed (1261) 1261 Prototype IDs (6) 120 Alien Tech Used (0) 0 Bonus (0) 0 TOTAL SCORE: 3596 Bonus ------- None Cogmind --------- Core Integrity 0/550 Matter 210/300 Energy 100/100 System Corruption 0% Temperature Danger (434) Movement Core (200) Ox3 Location -8/Materials Parts ------- > --- POWER (2) -------- (None) > --- PROPULSION (3) --- Armored Treads > --- UTILITY (2) ------ (None) > --- WEAPON (4) ------- Heavy Particle Cannon Heavy Particle Cannon > --- INVENTORY (5) ---- Improved Heat Sink Advanced Weight Redist. System Improved Sensor Array Peak State ------------ > --- POWER ------------ Light Nuclear Core Light Nuclear Core > --- PROPULSION ------- Armored Treads Aluminum Leg Aluminum Leg > --- UTILITY ---------- Improved Sensor Array Sensor Drone Bay > --- WEAPON ----------- Heavy Particle Cannon Heavy Particle Cannon Heavy Particle Cannon Improved Assault Rifle > --- INVENTORY -------- Improved Heat Sink Advanced Weight Redist. System Improved Sensor Array Missile Launcher [Rating: 35] Favorites ----------- Power Ion Engine Engine Ion Engine Power Core Light Nuclear Core Propulsion Aluminum Leg Treads Armored Treads Leg Aluminum Leg Wheel Compact Wheel Flight Unit Flight Unit Utility Sensor Drone Bay Device Sensor Drone Bay Storage Small Storage Unit Protection Weapon Shielding Weapon Heavy Particle Cannon Energy Gun Particle Gun Energy Cannon Heavy Particle Cannon Ballistic Gun Assault Rifle Launcher Rocket Launcher Build | -11 -10 -10 -10 -9 -8 ------- Run | Jun Mat Min Exi Min Mat Slots Evolved 4 | . . . . . 4 Power 1 | . . . . . 1 Propulsion 1 | . . . . . 1 Utility . | . . . . . . Weapon 2 | . . . . . 2 Parts Attached 54 | 6 11 3 . 12 22 Power 7 | 1 1 . . 1 4 Engine 4 | 1 1 . . 1 1 Core 3 | . . . . . 3 Reactor . | . . . . . . Propulsion 16 | 2 6 . . 3 5 Treads 3 | . 2 . . . 1 Leg 9 | . 2 . . 3 4 Wheel 2 | 2 . . . . . Hover . | . . . . . . Flight 2 | . 2 . . . . Utility 8 | 1 1 . . 3 3 Device 5 | . 1 . . 3 1 Storage 1 | 1 . . . . . Processor . | . . . . . . Hackware . | . . . . . . Protection 2 | . . . . . 2 Artifact . | . . . . . . Weapon 23 | 2 3 3 . 5 10 Energy Gun 3 | 1 . . . . 2 Energy Cannon 4 | . . . . 1 3 Ballistic Gun 11 | 1 2 1 . 3 4 Ballistic Cannon . | . . . . . . Launcher 5 | . 1 2 . 1 1 Special Weapon . | . . . . . . Impact Weapon . | . . . . . . Slashing Weapon . | . . . . . . Piercing Weapon . | . . . . . . Special Melee Weapon . | . . . . . . Unidentified Prototypes 2 | . . . . 1 1 Parts Lost 30 | . 3 1 . 4 22 Power 5 | . . . . . 5 Propulsion 9 | . 1 . . 2 6 Utility 5 | . 1 . . . 4 Weapon 11 | . 1 1 . 2 7 Highest Loss Streak 10 | . 2 1 . 2 10 To Critical Strikes . | . . . . . . Average Slot Usage (%) 83 | . 95 71 71 84 84 Engine 9 | . 14 14 14 14 2 Core 3 | . . . . . 8 Leg 16 | . 3 . . 20 23 Wheel 2 | . 22 . . . . Flight 4 | . 1 28 28 . . Device 12 | . 11 . . 19 12 Storage 1 | . 13 . . . . Protection 2 | . . . . . 5 Energy Gun 2 | . 12 . . . 3 Energy Cannon 7 | . . . . 6 13 Ballistic Gun 12 | . 14 14 14 11 11 Launcher 6 | . . 14 14 9 2 Naked Turns . | . . . . . . Heaviest Build 46 | 14 15 8 8 29 46 Greatest Support 40 | 26 26 8 8 25 40 Greatest Overweight (x) 5 | 1 1 . . 2 5 Average Overweight (x) . | . . . . . 1 Largest Inventory Capacity 8 | 8 8 5 5 5 5 Average Capacity 5 | 7 7 5 5 5 5 Most Carried 8 | 6 8 5 5 5 5 Average Carried 5 | 3 7 4 4 4 4 Final Capacity 8 | 8 5 5 5 5 5 Final Carried 6 | 6 4 4 5 5 3 Class Distribution -------------------- 50% | Mutant 23% | Scavenger-Tank 15% | Scavenger-Mutant 9% | Scavenger-Skirmisher Dominant Class ---------------- Mutant | -10/Materials Mutant | -10/Mines Mutant | -10/Exiles Mutant | -9/Mines Scavenger-Tank | -8/Materials Resources | -11 -10 -10 -10 -9 -8 ----------- Run | Jun Mat Min Exi Min Mat Matter Collected 1243 | 216 178 . . 296 553 Remotely . | . . . . . . Salvage Created 1263 | . 268 14 . 150 831 Parts 73 | . 18 . . 10 45 Haulers Intercepted . | . . . . . . Recyclers Shooed 1 | . . . . . 1 Parts Field Recycled . | . . . . . . Retrieved Matter . | . . . . . . Parts Self-Destructed . | . . . . . . Prevented . | . . . . . . Kills | -11 -10 -10 -10 -9 -8 ------- Run | Jun Mat Min Exi Min Mat Combat Hostiles Destroyed 41 | . 7 4 . 7 23 Guns 21 | . 7 . . 3 11 Cannons 6 | . . . . . 6 AOE 14 | . . 4 . 4 6 Classes Destroyed 7 | . 4 1 . . 2 Worker 1 | . 1 . . . . Builder 1 | . . . . . 1 Watcher 4 | . 1 . . . 3 Swarmer 15 | . 3 . . 4 8 Grunt 18 | . 4 . . 3 11 Sentry 4 | . . . . . 4 Assembled 4 | . . 4 . . . Best Kill Streak 5 | . 3 4 . 5 5 Combat Bots Only 5 | . 3 4 . 5 5 Max Kills in Single Turn 2 | . 1 2 . 2 2 Gunslinging 1 | . . . . . 1 Exploded 2 | . . 2 . 2 2 Melee . | . . . . . . Uniques/NPCs Destroyed . | . . . . . . Combat | -11 -10 -10 -10 -9 -8 -------- Run | Jun Mat Min Exi Min Mat Damage Taken 3703 | . 352 241 . 484 2626 Core 752 | . 49 35 . 107 561 Absorbed by Shields 20 | . . . . . 20 Redirected to Shielding 12 | . . . . . 12 Core Remaining (%) 61 | 100 . . . 23 . Volleys Fired 122 | . 32 6 . 16 68 Largest 4 | . 2 2 . 2 4 Hottest 248 | . 60 50 . 53 248 Shots Fired 275 | . 63 10 . 26 176 Gun 205 | . 63 6 . 23 113 Cannon 53 | . . . . . 53 Launcher 17 | . . 4 . 3 10 Special . | . . . . . . Kinetic 150 | . 33 6 . 23 88 Thermal 63 | . . . . . 63 Explosive 17 | . . 4 . 3 10 Electromagnetic 45 | . 30 . . . 15 Robot Hit Streak 9 | . 7 3 . 9 9 Robot Miss Streak 10 | . 3 1 . 10 4 Penetration Max . | . . . . . . Secondary Targets 7 | . 3 . . 1 3 Max Gunslinging Chain 1 | . 1 . . 1 1 Shots Hit Robots 139 | . 37 3 . 12 87 Core Hits 85 | . 12 11 . 10 52 Critical Kills . | . . . . . . Critical Parts Destroyed . | . . . . . . Critical Strikes . | . . . . . . Melee Attacks . | . . . . . . Impact . | . . . . . . Slashing . | . . . . . . Piercing . | . . . . . . Sneak Attacks . | . . . . . . Combat Hostiles . | . . . . . . Follow-up Attacks . | . . . . . . Damage Inflicted 3504 | . 464 215 . 413 2412 Guns 1370 | . 464 32 . 131 743 Cannons 576 | . . . . . 576 Explosions 1529 | . . 183 . 276 1070 Melee . | . . . . . . Ramming 29 | . . . . 6 23 Kinetic 985 | . 218 32 . 131 604 Thermal 873 | . . . . . 873 Explosive 1195 | . . 183 . 276 736 Electromagnetic 422 | . 246 . . . 176 Impact . | . . . . . . Slashing . | . . . . . . Piercing . | . . . . . . Highest Corruption . | . . . . . . Average Corruption . | . . . . . . Corruption Purged . | . . . . . . Corruption Blocked . | . . . . . . Overload Shots . | . . . . . . Overflow Damage 175 | . . . . 6 169 Projectiles 19 | . . . . . 19 Explosions 156 | . . . . 6 150 Melee . | . . . . . . Knockbacks . | . . . . . . Impact . | . . . . . . Kinetic . | . . . . . . Secondary . | . . . . . . Self-Inflicted Damage 163 | . . . . . 163 Shots 2 | . . . . . 2 Rammed 2 | . . . . . 2 Targets Rammed 11 | . . . . 3 8 Kicked 9 | . . . . 3 6 Crushed . | . . . . . . Highest Temperature 650 | . 144 32 . 14 650 Average Temperature 174 | . 53 16 . 7 206 Received Heat Transfer 1389 | . 189 60 . 75 1065 Effects 34 | . . . . . 34 Shutdowns 10 | . . . . . 10 Energy Bleed 1 | . . . . . 1 Interference 4 | . . . . . 4 Matter Decay 5 | . . . . . 5 Short Circuit 3 | . . . . . 3 Damage (minor) 5 | . . . . . 5 Damage (major) 3 | . . . . . 3 Damage (core) 3 | . . . . . 3 Siege Activations . | . . . . . . Robots Corrupted . | . . . . . . Combat Hostiles . | . . . . . . Parts Fried 1 | . 1 . . . . Impact Corruptions . | . . . . . . Robots Melted . | . . . . . . Combat Hostiles . | . . . . . . Parts Melted 1 | . . . . . 1 Heat Transferred 1125 | . . . . . 1125 Parts Sabotaged . | . . . . . . Parts Stolen . | . . . . . . Parts Stripped . | . . . . . . Power Chain Reactions . | . . . . . . Missiles Intercepted . | . . . . . . Alert | -11 -10 -10 -10 -9 -8 ------- Run | Jun Mat Min Exi Min Mat Peak Influence 361 | . 173 89 . 136 361 Initial 67 | . . 67 . . . Average 133 | . 88 73 . 26 242 Maximum Alert Level 1 | . . . . . 1 Low Security (%) 65 | 100 100 100 . 100 23 Level 1 34 | . . . . . 76 Level 2 . | . . . . . . Level 3 . | . . . . . . Level 4 . | . . . . . . Level 5 . | . . . . . . High Security . | . . . . . . Max Security . | . . . . . . Squads Dispatched 5 | . . . . 1 4 Investigation 3 | . . . . . 3 Extermination . | . . . . . . Reinforcement 2 | . . . . 1 1 Assault . | . . . . . . Garrison . | . . . . . . Intercept . | . . . . . . Searches Triggered . | . . . . . . Construction Impeded 1 | . . . . 1 . Haulers Reinforced . | . . . . . . Active Scanning Responses . | . . . . . . Cargo Convoy Interrupts . | . . . . . . Stealth | -11 -10 -10 -10 -9 -8 --------- Run | Jun Mat Min Exi Min Mat Distress Signals 2 | . . . . . 2 Communications Jammed . | . . . . . . Distress Signals . | . . . . . . Times Spotted 63 | . 9 8 . 7 39 Peak Tracking Total 7 | . 3 7 . 4 5 Tactical Retreats 4 | . 1 1 . . 2 Traps | -11 -10 -10 -10 -9 -8 ------- Run | Jun Mat Min Exi Min Mat Traps Triggered 1 | . . . . . 1 Indirectly . | . . . . . . Trap Hack Attempts . | . . . . . . Triggered . | . . . . . . Disarmed . | . . . . . . Reprogrammed . | . . . . . . Reused . | . . . . . . Traps Extracted . | . . . . . . Installed . | . . . . . . Triggered . | . . . . . . Machines | -11 -10 -10 -10 -9 -8 ---------- Run | Jun Mat Min Exi Min Mat Machines Disabled 5 | . . . . . 5 Max in Single Turn 2 | . . . . . 2 Machines Repaired . | . . . . . . Machines Sabotaged . | . . . . . . Overloaded Fab Kills . | . . . . . . Hacking | -11 -10 -10 -10 -9 -8 --------- Run | Jun Mat Min Exi Min Mat Machines Accessed 10 | . 2 . 4 1 3 Terminals 2 | . 1 . . . 1 Fabricators . | . . . . . . Repair Stations 2 | . 1 . . . 1 Recycling Units . | . . . . . . Scanalyzers 1 | . . . . . 1 Garrison Access . | . . . . . . Total Hacks 65 | . 6 . 49 1 9 Successful 58 | . 3 . 49 1 5 Failed 7 | . 3 . . . 4 Catastrophic . | . . . . . . Database Lockouts . | . . . . . . Manual . | . . . . . . Terminals 5 | . 2 . . . 3 Fabricators . | . . . . . . Repair Stations 8 | . 4 . . . 4 Recycling Units . | . . . . . . Scanalyzers 2 | . . . . . 2 Garrison Access . | . . . . . . Terminal Hacks 54 | . 2 . 49 1 2 Record 49 | . . . 49 . . Prototype ID Bank 2 | . 1 . . . 1 Open Door 1 | . . . . 1 . Locate Traps 1 | . 1 . . . . Hauler Manifests 1 | . . . . . 1 Fabricator Hacks . | . . . . . . Repair Station Hacks 2 | . 1 . . . 1 Scan Component 2 | . 1 . . . 1 Recycling Unit Hacks . | . . . . . . Scanalyzer 2 | . . . . . 2 Insert Component 1 | . . . . . 1 Analyze 1 | . . . . . 1 Garrison Access Hacks . | . . . . . . Unauthorized Hacks . | . . . . . . Terminals . | . . . . . . Fabricators . | . . . . . . Repair Stations . | . . . . . . Recycling Units . | . . . . . . Scanalyzers . | . . . . . . Garrison Access . | . . . . . . Data Cores Recovered . | . . . . . . Used . | . . . . . . Hacking Detections 4 | . 2 . . . 2 Full Trace Events 3 | . 1 . . . 2 Feedback Events . | . . . . . . Feedback Blocked . | . . . . . . Robot Schematics Acquired . | . . . . . . Robots Built . | . . . . . . Authchips . | . . . . . . Time . | . . . . . . Total Robot Build Rating . | . . . . . . Part Schematics Acquired 1 | . . . . . 1 Parts Built . | . . . . . . Authchips . | . . . . . . Time . | . . . . . . Total Part Build Rating . | . . . . . . Parts Repaired . | . . . . . . Time . | . . . . . . Parts Recycled . | . . . . . . Recycled Matter . | . . . . . . Retrieved Matter . | . . . . . . Retrieved Components . | . . . . . . Parts Scanalyzed 1 | . . . . . 1 Part Schematics Acquired 1 | . . . . . 1 Parts Damaged . | . . . . . . Bothacking | -11 -10 -10 -10 -9 -8 ------------ Run | Jun Mat Min Exi Min Mat Used RIF Installer . | . . . . . . Robots Hacked . | . . . . . . Non-combat . | . . . . . . Combat . | . . . . . . Robot Hacks Applied . | . . . . . . Relay Couplers Released . | . . . . . . Fabnet Peak Effective % . | . . . . . . Robots Rewired . | . . . . . . Allies Hacked . | . . . . . . Hacks Repelled . | . . . . . . Allies | -11 -10 -10 -10 -9 -8 -------- Run | Jun Mat Min Exi Min Mat Total Allies . | . . . . . . Largest Group . | . . . . . . Highest-Rated Group . | . . . . . . Highest-Rated Ally . | . . . . . . Total Orders 15 | . . . . 10 5 ROAM 3 | . . . . 2 1 EXPLORE 8 | . . . . 6 2 RETURN 4 | . . . . 2 2 Ally Attacks . | . . . . . . Total Damage . | . . . . . . Kills . | . . . . . . Allies Corrupted . | . . . . . . Allies Melted . | . . . . . . Intel | -11 -10 -10 -10 -9 -8 ------- Run | Jun Mat Min Exi Min Mat Robot Analysis Total . | . . . . . . Derelict Logs Recovered 2 | . . . . 2 . Drone Launches 103 | . . . . 48 55 Drone Recoveries 101 | . . . . 47 54 Exploration | -11 -10 -10 -10 -9 -8 ------------- Run | Jun Mat Min Exi Min Mat Turns Passed 2976 | 65 341 98 349 934 1189 Spaces Moved 2197 | 58 150 207 940 420 422 Core 16 | 12 . . . . 4 Treads 8 | . . . . . 8 Legs 830 | . 11 . . 409 410 Wheels 157 | 46 111 . . . . Hover . | . . . . . . Flight 1186 | . 28 207 940 11 . Fastest Speed 37 | 50 37 37 37 37 120 Average Speed 99 | 82 83 37 37 183 195 Slowest Speed 400 | 95 120 37 37 260 400 Overloaded Moves . | . . . . . . Propulsion Burnouts . | . . . . . . Robots Hopped . | . . . . . . Cave-ins Triggered . | . . . . . . Exploration Rate (%) 52 | 4 30 59 92 100 30 Regions Visited 5 Branch Regions 3 Pre-discovered Areas 1 | . . . 1 . . Known Exits Taken 1 | . . . . 1 . Unknown Exits Taken 4 | 1 1 1 1 . . Scrap Searched 4 | . . 1 . 3 . Spaces Dug . | . . . . . . Terrain Destroyed 139 | . . 12 . 28 99 Melee . | . . . . . . Projectile 19 | . . . . . 19 AOE 120 | . . 12 . 28 80 Terrain Rammed . | . . . . . . Walls Destroyed . | . . . . . . Machines Disabled . | . . . . . . Actions | -11 -10 -10 -10 -9 -8 --------- Run | Jun Mat Min Exi Min Mat Total 2735 | 75 300 216 940 557 647 Wait 304 | . 100 . . 97 107 Move 2192 | 57 149 206 939 419 422 Hop . | . . . . . . Pick Up 33 | 12 5 1 1 4 10 Fast Attach 21 | . 1 . . 5 15 Attach 22 | 6 4 1 . 3 8 Detach 1 | . . . . 1 . Swap 12 | . 6 2 . 4 . Drop 17 | . 3 . . 5 9 Fire 122 | . 32 6 . 16 68 Melee . | . . . . . . Ram . | . . . . . . Kick 9 | . . . . 3 6 Crush 2 | . . . . . 2 Escape Stasis . | . . . . . . Rewire . | . . . . . . Trap . | . . . . . . Miscellaneous . | . . . . . . Route ------- -11/Junkyard -10/Materials -10/Mines -10/Exiles (discovered 2 exits: *Min x2) -9/Mines (discovered 2 exits: *Mat x2) -8/Materials History --------- Turn | Location | Event 10 | -11/Junkyard | Discovered new exit (range 15) 66 | -11/Junkyard | Entered Materials 306 | -10/Materials | Build established: Mutant 400 | -10/Materials | Discovered new exit (range 12) 407 | -10/Materials | Entered Mines 434 | -10/Mines | Assembled infested the area 449 | -10/Mines | YI-UF0 nonchalantly dropped a Grenade Launcher on the ground 503 | -10/Mines | Deemed a non-threat by the Exiles lab entrance 503 | -10/Mines | Discovered new exit (range 5) 505 | -10/Mines | Entered Exiles 513 | -10/Exiles | Discovered new exit (range 15) 519 | -10/Exiles | Met 8R-AWN 526 | -10/Exiles | Met EX-HEX 549 | -10/Exiles | Met EX-DEC 559 | -10/Exiles | Learned location of Zion (-7) 573 | -10/Exiles | Discovered new exit (range 14) 602 | -10/Exiles | Met EX-BIN 689 | -10/Exiles | Visited The Gauntlet 854 | -10/Exiles | Entered Mines 865 | -9/Mines | Met a Derelict bent on vengeance 905 | -9/Mines | Identified exit to Materials 961 | -9/Mines | Found the Drone Emporium 967 | -9/Mines | Found Prototype Device 967 | -9/Mines | Identified Sensor Drone Bay 987 | -9/Mines | Discovered exit to Materials (range 24) 1115 | -9/Mines | Received a Rocket Launcher from a helpful Derelict 1129 | -9/Mines | Core integrity fell below 50% 1598 | -9/Mines | Build established: Scavenger-Mutant 1788 | -9/Mines | Entered Materials 1788 | -8/Materials | Evolved 4 slots: Power x1, Propulsion x1, Weapon x2 2097 | -8/Materials | Build established: Scavenger-Tank 2207 | -8/Materials | Lost 7 parts (1p3n1u2w) 2339 | -8/Materials | Core integrity fell below 50% 2969 | -8/Materials | Core integrity fell below 20% 2977 | -8/Materials | Destroyed by G-47 Trooper with Particle Gun Last Messages --------------- Overheating: Matter decay (-24). Overheating: Core damaged (-110). Sensor Drone Bay destroyed. Overheating: Broken Hvy. Particle Cannon damaged (-38). Overheating: System interference. Hvy. Particle Cannon temporarily disabled. Power failure, Lgt. Nuclear Core shutdown. Arm. Treads broken. Overheating: Short circuit. [Achievement: Let's See Who's Tougher] Fusion Modulator explodes. U-05 Engineer destroyed. Destroyed Aluminum Leg. Lgt. Nuclear Core destroyed. Destroyed Lgt. Nuclear Core. Missile Launcher destroyed. Destroyed Missile Launcher. Destroyed Particle Gun. Repair Station disabled. Destroyed Aluminum Leg. Map ----- +----------------------------------------------------+ | ???????????????????????????????????????????????? | | ???????????????????????????????????????????????? | | ???????????????????????????????????????????????? | | ???????????????????????????????????????????????? | | ??#############????????????????????????????????? | | ??# #????????????????????????????????? | | ??# %#????????????????????????????????? | | ??# ! #????????????????????????????????? | | ??# = #????????????????????????????????? | | ??# = [ #????????????????????????????????? | | ??# [[ #????????????????????????????????? | | ??# ! ##########???????????????????????? | | ??# """ [# "T" #???????????????????????? | | ??# """ # #???????????????????????? | | ??# """ # [ #???????????????????????? | | ??## = # #???????????????????????? | | ???# ##+#######???????????????????????? | | ???# #?????????????????????????????? | | ???# ######## #?????????????????????????????? | | ???# #??????# #???##????????????????????????? | | ???# ######## #?### #######?????????????????? | | ???# # ] !# #?# ;; #?????????????????? | | ???# #/ # ###; ;##????????????????? | | ???# # """ + ## ! g ; #???????????###??? | | ???# #[ """ # ## ! g ; #?????????? !##?? | | ???# = # """ # ## @ [ #?????????? !#?? | | ???# [ # # ## ; #????????? !#?? | | ???# ######## ## g ;##???????? !#?? | | ???# ##+######## ## ;#????????? !#?? | | ???#*## ! # ## u;#???????? !???? | | ???# T# # ## ##????#??# ##????? | | ???# ## ! # #########+########## #????? | | ???# ## # !%! #????? | | ???# ## + % % !% #????? | | ???# ## # #????? | | ???# ## ### #######+########## | | ???# ## #?# # ! #????#+######## | | ???#*## #?# + #?????????????? | | ?###/###########?### """ """ """ #?????????????? | | ?#=[ =%= #????# """ """ """ #?????????????? | | ?#*!!!=[ #????# """ """ """ #?????????????? | | ?#%!!!* #????# #?????????????? | | ?# !!! #???################?????????????? | | ?# ! #???# #???????????????????? | | ########+######???# ! #???????????????????? | | # # ######## ! #???????????????????? | | # # # #???????????????????? | | # + + """ #???????????????????? | | # # # """" #???????????????????? | | # # ######## """"" #???????????????????? | +----------------------------------------------------+ Best States ------------- Heat Dissipation 39 Energy Generation 23 Energy Capacity 250 Matter Stores 300 Matter Capacity 300 Sight Range 16 Robot Scan Range 15 Terrain Scan Density 10 Armor Coverage 225 Weapon Shielding 33 Evasion (%) 62 Recoil Reduction 1 Item Schematics ----------------- Lgt. Ion Engine | -8/Materials | Scanalyzed Robot Schematics ------------------ None Fabricated ------------ Nothing Alien Tech Used ----------------- None Achievements -------------- I Survived The Infestation Let's See Who's Tougher Librarian Release The Drones! Tourist Challenges ------------ None Game ------ Seed IntegrityPotentialBrace Manual? 0 Play Time 00:44:42 Cumulative 5.2 hours Start 2023.09.30 @ 21:11:46 End 2023.09.30 @ 21:57:25 Sessions 1 Manual Loads 0 Difficulty Rogue Special Mode None Game No. 8 Rogue 8 Adventurer 0 Explorer 0 Win Type - Total 0 Types 0/0/0/0/0/0/0/0/0 Lore% 10 Gallery% 13 Achievement% 12 Wizard Run 0 Options --------- ASCII 0 Keyboard 0 Movement Mouse Keybinds 0 Fullscreen 1 Font 18/SmallcapsGlow Map View 76x50 Tactical HUD 0 Map Filters NONE Filters NONE Steam 1 RUN: 00a740c5-c45c-4c10-8e5a-bc1b139d73c4